bitfinex-derivatives/quotes_SOLF0:USTF0_20251108
["timestamp","ask_amount","ask_price","bid_price","bid_amount"]
[1762612724096,3.21,157.77,157.76,0.04496084]
[1762612724290,8.00178397,157.77,157.76,0.04496084]
[1762612729001,4.5263582,157.77,157.76,3.15496084]
[1762612729193,5.8004824,157.85,157.77,1.26]
[1762612729386,5.8004824,157.92,157.82,2.36612169]
[1762612729690,2.93,157.87,157.8,2.36612169]
[1762612729890,2.93,157.87,157.78,7.71612169]
[1762612730095,2.93,157.87,157.78,3.11]
[1762612730283,2.93,157.85,157.78,3.11]
[1762612730482,2.97637382,157.84,157.81,0.04582102]
[1762612733200,8.68087382,157.84,157.81,0.04582102]
[1762612733388,2.93,157.83,157.81,0.04582102]
[1762612733595,2.93,157.83,157.72,3.11]
[1762612734593,0.04643593,157.79,157.76,0.03999761]
[1762612734799,2.97643593,157.79,157.76,0.03999761]
[1762612737001,2.97643593,157.79,157.78,5.92002842]
[1762612737704,2.97643593,157.79,157.77,7.89337123]
[1762612738711,0.04643593,157.79,157.78,11.00337123]
[1762612739006,2.93,157.91,157.8,3.11]
[1762612739301,2.93,157.91,157.87,5.91895233]
[1762612739801,2.93,157.91,157.85,7.89193644]
[1762612739802,2.93,157.91,157.88,5.91895233]
[1762612740002,0.04599668,157.91,157.9,5.91895233]
[1762612740199,0.04599668,157.91,157.9,11.00193644]
[1762612740502,0.04599668,157.91,157.9,3.11]
[1762612740797,2.93,157.95,157.9,3.11]
[1762612740996,2.93,157.95,157.93,5.91310592]
[1762612741198,2.93,157.95,157.94,5.91310592]
[1762612741404,3.21,157.98,157.93,5.91310592]
[1762612741601,3.21,157.97,157.91,5.91310592]
[1762612741806,3.21,157.95,157.92,0.04433539]
[1762612742000,3.21,157.95,157.92,0.04655083]
[1762612742202,0.04869658,157.96,157.92,3.00655083]
[1762612742503,3.21,158.01,157.95,8.87310592]
[1762612742811,11.39126613,158.13,157.9,11.83790466]
[1762612742812,3.21,158.04,157.98,8.87310592]
[1762612743307,3.21,158.04,157.98,2.96]
[1762612743702,3.25167122,158.03,157.99,0.04385225]
[1762612743903,3.25167122,158.03,157.99,0.04345378]
[1762612744605,3.21,157.99,157.92,5.91310592]
[1762612744797,3.21,157.99,157.9,7.88414123]
[1762612744798,3.21,157.99,157.9,5.91310592]
[1762612744996,3.21,157.99,157.89,2.96]
[1762612745307,3.21,157.99,157.89,8.87310592]
[1762612745509,3.21,157.98,157.89,8.87310592]
[1762612745697,3.21,157.94,157.92,0.04559813]
[1762612750411,0.04819401,157.95,157.92,3.00559813]
[1762612751213,3.21,158.01,157.92,3.00559813]
[1762612751712,3.21,158.01,157.93,8.6611]
[1762612752007,3.21,158.01,157.94,2.96]
[1762612752203,3.21,158.01,157.93,11.61420592]
[1762612752204,0.04537197,157.99,157.96,3.0064544]
[1762612753805,3.25537197,157.99,157.96,0.0464544]
[1762612755095,3.21,157.98,157.96,0.0464544]
[1762612755298,0.04537197,157.99,157.96,3.0064544]
[1762612755510,0.04537197,157.99,157.98,2.96]
[1762612755809,3.21,158.07,157.98,2.96]
[1762612756114,3.21,158.11,158.03,2.96]
[1762612756608,3.21,158.11,157.97,7.88414123]
[1762612756609,8.9057,158.09,158.0,2.96]
[1762612756798,3.21,158.08,158.0,2.96]
[1762612757110,0.0392395,158.06,158.03,3.00490393]
[1762612758511,3.21,158.13,158.03,3.00490393]
[1762612758709,3.21,158.13,158.03,2.96]
[1762612759003,3.32083037,158.21,158.03,2.96]
[1762612759316,3.21,158.17,158.05,2.96]
[1762612759611,3.21,158.17,158.1,3.00138447]
[1762612759909,3.21,158.17,158.12,0.04432207]
[1762612761602,3.21,158.17,158.12,3.00432207]
[1762612762205,3.21,158.17,158.12,0.04432207]
[1762612762803,3.21,158.14,158.12,0.04432207]
[1762612763208,3.21,158.14,158.0,5.91310592]
[1762612763209,4.47,158.14,158.03,2.96]
[1762612763516,3.21,158.13,158.0,2.96]
[1762612763809,3.21,158.07,158.0,2.96]
[1762612764005,3.21,158.07,157.97,2.96]
[1762612764406,3.2508046,158.04,158.0,0.04055467]
[1762612764607,3.25145734,158.04,158.0,0.0463034]
[1762612766414,8.94905734,158.04,158.0,0.0463034]
[1762612766713,3.21,158.03,158.0,0.0463034]
[1762612767508,0.04145734,158.04,157.9,2.96]
[1762612767707,3.21,158.01,157.9,2.96]
[1762612768307,8.9098,157.98,157.9,2.96]
[1762612768503,3.21,157.98,157.9,2.96]
[1762612768707,3.25109365,157.96,157.92,0.04300196]
[1762612768908,3.21,157.96,157.9,2.96]
[1762612769108,3.25557832,157.96,157.92,0.04812917]
[1762612770912,3.21,157.94,157.92,0.04812917]
[1762612772413,8.9112,157.94,157.92,0.04812917]
[1762612772620,3.19,157.93,157.92,0.04812917]
[1762612773516,3.19,157.93,157.83,2.94]
[1762612773714,3.19,157.9,157.83,2.94]
[1762612774626,0.0480945,157.88,157.85,0.04474176]
[1762612774917,3.2380945,157.88,157.85,0.04474176]
[1762612776019,3.2380945,157.88,157.72,2.94]
[1762612776218,3.19,157.86,157.7,2.94]
[1762612776722,3.19,157.79,157.7,2.94]
[1762612777126,0.04705773,157.76,157.73,2.98023941]
[1762612778527,9.14446966,157.89,157.75,2.94]
[1762612778528,3.19,157.86,157.75,2.94]
[1762612779017,8.8939,157.86,157.77,2.94]
[1762612779728,0.04366261,157.83,157.8,0.04476189]
[1762612780223,3.23366261,157.83,157.8,0.04476189]
[1762612782122,3.19,157.82,157.8,0.04476189]
[1762612783629,3.06,157.81,157.8,0.04476189]
[1762612785227,3.10366261,157.83,157.8,0.04476189]
[1762612787528,3.06,157.82,157.8,0.04476189]
[1762612788235,8.7655,157.82,157.8,0.04476189]
[1762612788422,3.06,157.81,157.8,0.04476189]
[1762612790132,0.04366261,157.83,157.8,0.04476189]
[1762612790323,3.10366261,157.83,157.8,0.04476189]
[1762612791128,3.06,157.81,157.8,0.04476189]
[1762612800431,3.06,157.77,157.69,3.0]
[1762612800840,3.06,157.77,157.71,3.0]
[1762612801144,3.06,157.81,157.71,3.0]
[1762612801336,8.7271,157.77,157.74,0.04717452]
[1762612801535,3.02,157.76,157.74,0.04790434]
[1762612802341,0.0464581,157.78,157.74,0.04790434]
[1762612802342,3.0664581,157.78,157.74,0.04790434]
[1762612802633,5.7533581,157.78,157.74,2.97790434]
[1762612803236,8.7733581,157.78,157.74,2.97790434]
[1762612803436,0.0464581,157.78,157.74,2.97790434]
[1762612804841,3.0664581,157.78,157.74,0.04790434]
[1762612805436,3.02,157.76,157.74,0.04790434]
[1762612806053,3.02,157.75,157.74,0.04790434]
[1762612806739,3.02,157.75,157.66,2.93]
[1762612807138,5.7093,157.71,157.66,2.93]
[1762612807342,3.02,157.7,157.66,2.93]
[1762612807842,3.06486787,157.7,157.66,2.97455304]
[1762612809358,0.04486787,157.7,157.66,2.97455304]
[1762612811543,0.04486787,157.7,157.66,8.68545304]
[1762612811848,0.04486787,157.7,157.67,2.93]
[1762612813843,0.04486787,157.7,157.67,8.6405]
[1762612814145,0.04486787,157.7,157.68,2.93]
[1762612814648,0.04486787,157.7,157.68,8.6402]
[1762612814949,0.04486787,157.7,157.69,2.93]
[1762612818041,0.04486787,157.7,157.67,2.93]
[1762612818946,0.04486787,157.7,157.67,8.6406]
[1762612819135,0.04486787,157.7,157.68,2.93]
[1762612819844,0.04486787,157.7,157.68,8.6401]
[1762612820040,0.04486787,157.7,157.69,2.93]
[1762612821451,3.02,157.78,157.72,2.93]
[1762612821452,4.54214178,157.77,157.72,2.93]
[1762612821747,4.54214178,157.76,157.72,2.93]
[1762612822049,8.7836498,157.81,157.73,2.93]
[1762612822248,7.56215215,157.8,157.73,2.93]
[1762612822442,3.02,157.78,157.75,0.04163183]
[1762612824347,3.02,157.76,157.75,0.04163183]
[1762612824553,7.56319997,157.76,157.75,0.04163183]
[1762612825256,3.02,157.75,157.69,2.93]
[1762612825552,3.02,157.74,157.69,2.93]
[1762612826149,3.06310425,157.73,157.7,0.04082065]
[1762612827249,0.04310425,157.73,157.7,2.97082065]
[1762612827452,0.04310425,157.73,157.72,2.93]
[1762612828041,8.7261,157.8,157.74,5.708]
[1762612828652,3.02,157.79,157.72,8.6387]
[1762612828951,3.06472307,157.77,157.74,0.04742634]
[1762612829757,3.02,157.75,157.74,0.04742634]
[1762612829949,3.02,157.75,157.66,2.93]
[1762612830149,5.7089,157.72,157.66,2.93]
[1762612830450,3.02,157.71,157.64,200.25594243]
[1762612830652,8.7294,157.71,157.64,200.25594243]
[1762612831057,0.04607345,157.69,157.66,0.04532995]
[1762612831759,3.27607345,157.69,157.66,0.04532995]
[1762612833055,8.98607345,157.69,157.66,0.04532995]
[1762612833253,5.75607345,157.69,157.66,0.04532995]
[1762612833453,3.23,157.68,157.66,0.04532995]
[1762612833844,8.9405,157.68,157.66,0.04532995]
[1762612834049,3.23,157.67,157.66,0.04532995]
[1762612834752,3.23,157.64,157.57,67.61]
[1762612835251,8.9419,157.64,157.57,73.3242]
[1762612835656,0.04195875,157.62,157.6,3.03]
[1762612835852,0.04195875,157.62,157.6,8.7431]
[1762612836055,3.23,157.7,157.61,3.03]
[1762612837054,0.04421195,157.67,157.64,0.04520774]
[1762612837255,0.04421195,157.67,157.64,3.07520774]
[1762612839446,3.27421195,157.67,157.64,0.04520774]
[1762612841160,0.04421195,157.67,157.64,3.07520774]
[1762612841551,3.23,157.75,157.66,3.03]
[1762612842055,3.23,157.74,157.66,3.03]
[1762612842555,0.04014984,157.72,157.69,8.7398]
[1762612842859,0.04014984,157.72,157.69,3.03]
[1762612844058,3.12014984,157.72,157.68,0.046423]
[1762612846460,3.12014984,157.72,157.68,3.186423]
[1762612846760,0.04014984,157.72,157.68,8.896623]
[1762612847062,0.04014984,157.72,157.68,3.186423]
[1762612847354,3.08,157.71,157.68,0.046423]
[1762612847861,5.74914984,157.72,157.68,3.186423]
[1762612848360,8.82914984,157.72,157.68,3.186423]
[1762612849463,3.12014984,157.72,157.68,3.186423]
[1762612849953,3.12014984,157.72,157.68,0.046423]
[1762612850550,8.82924984,157.72,157.68,3.186423]
[1762612850754,3.08,157.71,157.68,0.046423]
[1762612851763,0.04014984,157.72,157.7,3.14]
[1762612851959,3.12014984,157.72,157.68,0.046423]
[1762612852472,3.12014984,157.72,157.68,8.896623]
[1762612852660,0.04014984,157.72,157.69,3.14]
[1762612853265,0.04014984,157.72,157.71,3.14]
[1762612853959,0.04014984,157.72,157.69,3.14]
[1762612854373,0.04014984,157.72,157.71,3.14]
[1762612854766,0.04014984,157.72,157.7,8.8495]
[1762612855558,4.58706254,157.79,157.75,5.7075]
[1762612855758,4.5884605,157.81,157.76,3.14]
[1762612855965,3.08,157.83,157.76,3.14]
[1762612856162,3.08,157.83,157.77,3.14]
[1762612856568,3.08,157.81,157.78,0.04295702]
[1762612856768,3.08,157.81,157.78,0.04426591]
[1762612857672,3.1221785,157.82,157.78,0.04426591]
[1762612860667,0.0421785,157.82,157.78,3.18426591]
[1762612860861,3.1221785,157.82,157.78,3.18426591]
[1762612861059,3.1221785,157.82,157.78,0.04426591]
[1762612862364,3.18,157.81,157.78,0.04426591]
[1762612865968,0.0421785,157.82,157.78,0.04426591]
[1762612865969,3.18,157.79,157.78,0.04426591]
[1762612866168,3.18,157.79,157.72,3.09]
[1762612866373,3.18,157.79,157.69,3.09]
[1762612867176,8.8871,157.77,157.69,8.7998]
[1762612867376,3.22222215,157.76,157.72,3.1323952]
[1762612868272,3.22222215,157.76,157.72,0.0423952]
[1762612868677,3.18,157.75,157.72,0.0423952]
[1762612869264,8.8879,157.75,157.72,0.0423952]
[1762612869576,3.18,157.74,157.72,0.0423952]
[1762612869877,3.18,157.73,157.72,0.0423952]
[1762612871178,3.22222215,157.76,157.72,0.0423952]
[1762612871774,3.18,157.74,157.72,0.0423952]
[1762612872268,8.8882,157.74,157.72,0.0423952]
[1762612872577,3.18,157.73,157.72,0.0423952]
[1762612873974,0.04222215,157.76,157.63,8.802]
[1762612873975,3.18,157.7,157.63,8.802]
[1762612874674,3.18,157.7,157.63,3.09]
[1762612874877,0.04757166,157.68,157.65,3.1341928]
[1762612878273,3.18,157.67,157.65,0.0441928]
[1762612879072,8.8907,157.67,157.65,0.0441928]
[1762612880479,0.04757166,157.68,157.65,3.1341928]
[1762612881082,3.22757166,157.68,157.65,3.1341928]
[1762612881283,3.22757166,157.68,157.65,0.0441928]
[1762612881973,3.22757166,157.68,157.65,3.1341928]
[1762612882179,0.04757166,157.68,157.65,3.1341928]
[1762612882973,3.18,157.67,157.65,0.0441928]
[1762612884183,5.75797166,157.68,157.65,3.1341928]
[1762612884480,0.04757166,157.68,157.65,3.1341928]
[1762612885186,5.7636498,157.8,157.65,3.1341928]
[1762612885187,5.7082,157.74,157.67,3.09]
[1762612885671,3.18,157.76,157.68,3.09]
[1762612886284,3.18,157.73,157.7,0.04782681]
[1762612886484,3.18,157.73,157.7,0.04341088]
[1762612886685,8.8887,157.73,157.7,0.04341088]
[1762612888080,0.04334168,157.74,157.7,3.13341088]
[1762612889987,0.04334168,157.74,157.71,3.09]
[1762612890488,0.04334168,157.74,157.71,8.7991]
[1762612890678,0.04334168,157.74,157.72,3.09]
[1762612891183,0.04334168,157.74,157.7,3.13341088]
[1762612891776,3.20334168,157.74,157.7,3.13341088]
[1762612891980,3.20334168,157.74,157.7,0.04341088]
[1762612892388,8.91154168,157.74,157.7,0.04341088]
[1762612892683,3.16,157.73,157.7,0.04341088]
[1762612893186,8.8685,157.73,157.7,0.04341088]
[1762612893488,3.16,157.72,157.7,0.04341088]
[1762612894384,3.16,157.71,157.7,0.04341088]
[1762612905295,3.00334168,157.74,157.7,3.14341088]
[1762612905494,0.04334168,157.74,157.7,3.14341088]
[1762612905887,3.00334168,157.74,157.7,3.14341088]
[1762612906598,0.04334168,157.74,157.7,3.14341088]
[1762612907390,23.4836498,157.84,157.71,3.70307775]
[1762612907688,2.96,157.85,157.75,3.1]
[1762612907994,2.96,157.85,157.76,3.1]
[1762612908492,0.04627114,157.82,157.79,3.14696571]
[1762612910294,61.78,157.92,157.81,3.1]
[1762612911193,0.04161241,157.88,157.85,0.04137008]
[1762612911399,0.04161241,157.88,157.86,3.1]
[1762612913488,2.96,158.0,157.87,3.1]
[1762612914409,0.04568185,157.95,157.92,0.04816036]
[1762612914593,0.04424947,157.95,157.92,0.04185711]
[1762612915293,0.04424947,157.95,157.92,3.14185711]
[1762612915894,3.00424947,157.95,157.92,0.04185711]
[1762612918407,0.04424947,157.95,157.92,3.14185711]
[1762612918599,0.04424947,157.95,157.94,3.1]
[1762612919300,2.96,158.02,157.96,5.7]
[1762612919600,2.96,158.02,157.96,3.1]
[1762612919799,2.96,158.05,157.96,3.1]
[1762612919997,2.96,158.05,157.97,5.6995]
[1762612920200,2.96,158.04,157.96,3.1]
[1762612920395,2.96,158.04,157.98,0.04096525]
[1762612920592,2.96,158.04,157.98,3.14096525]
[1762612922103,2.96,158.04,157.98,0.04096525]
[1762612923105,3.2,158.02,157.98,0.04096525]
[1762612923306,3.2,158.02,157.98,0.04036304]
[1762612923902,3.2,158.02,157.98,3.15036304]
[1762612925208,5.6971,158.05,157.98,3.15036304]
[1762612925705,3.2,158.06,157.98,3.15036304]
[1762612926307,3.2,158.06,157.99,3.11]
[1762612926707,3.2,158.06,157.99,8.8089]
[1762612927102,3.2,158.06,158.0,3.11]
[1762612927301,3.2,158.06,158.01,3.15229743]
[1762612928405,3.2,158.08,158.01,3.15229743]
[1762612930008,3.2,158.07,158.01,3.15229743]
[1762612930207,3.2,158.07,158.02,3.15802984]
[1762612931506,3.2,158.06,158.02,0.04802984]
[1762612931805,3.2,158.06,158.02,0.04159402]
[1762612932505,8.8967,158.06,158.02,0.04159402]
[1762612932706,3.2,158.05,158.02,0.04159402]
[1762612934409,3.2,158.03,158.02,0.04159402]
[1762612934614,3.2,158.03,158.01,0.04173016]
[1762612934808,3.2,158.03,158.0,0.04572242]
[1762612935118,3.2,158.01,157.92,3.11]
[1762612935413,3.2,157.96,157.92,3.11]
[1762612935618,3.2,157.96,157.89,5.7025]
[1762612935821,3.2,157.96,157.89,8.8125]
[1762612936116,3.24341357,157.94,157.91,0.04238861]
[1762612936417,3.24492399,157.94,157.91,0.04083955]
[1762612936615,0.04492399,157.94,157.91,3.15083955]
[1762612937915,3.24492399,157.94,157.91,0.04083955]
[1762612939018,8.94612399,157.94,157.91,0.04083955]
[1762612939418,0.04492399,157.94,157.91,3.15083955]
[1762612940714,3.24492399,157.94,157.91,0.04083955]
[1762612940916,0.04492399,157.94,157.91,3.15083955]
[1762612941210,0.04492399,157.94,157.93,3.11]
[1762612943422,3.24492399,157.94,157.91,0.04083955]
[1762612943616,0.04492399,157.94,157.91,3.15083955]
[1762612944116,0.04492399,157.94,157.91,8.85273955]
[1762612944315,0.04492399,157.94,157.92,3.11]
[1762612946016,0.04492399,157.94,157.92,8.8115]
[1762612948527,0.04492399,157.94,157.92,3.11]
[1762612950723,0.04492399,157.94,157.91,0.04083955]
[1762612950724,3.24492399,157.94,157.91,0.04083955]
[1762612951427,3.06,157.92,157.91,0.04083955]
[1762612951627,3.06,157.92,157.86,8.6137]
[1762612951829,8.7618,157.92,157.86,2.91]
[1762612952029,3.06,157.92,157.86,2.91]
[1762612952326,5.7021,157.91,157.86,2.91]
[1762612952524,3.06,157.9,157.86,2.91]
[1762612952726,3.10437283,157.9,157.86,2.95680256]
[1762612953225,0.04437283,157.9,157.86,2.95680256]
[1762612953425,3.10437283,157.9,157.86,2.95680256]
[1762612954428,3.10437283,157.9,157.86,8.66050256]
[1762612954631,3.10437283,157.9,157.87,2.91]
[1762612954834,0.04437283,157.9,157.87,2.91]
[1762612956825,3.10437283,157.9,157.87,2.91]
[1762612957124,3.10437283,157.9,157.86,8.66050256]
[1762612957319,3.10437283,157.9,157.86,2.95680256]
[1762612957923,3.10437283,157.9,157.86,0.04680256]
[1762612958124,5.46837995,157.9,157.86,0.04680256]
[1762612959529,3.06,157.89,157.86,0.04680256]
[1762612962532,5.42400712,157.88,157.86,0.04680256]
[1762612962835,3.06,157.87,157.86,0.04680256]
[1762612964139,3.21,157.88,157.86,0.04680256]
[1762612964640,3.25437283,157.9,157.86,3.09680256]
[1762612964938,3.25437283,157.9,157.86,0.04680256]
[1762612965942,3.21,157.89,157.86,0.04680256]
[1762612967034,8.9129,157.89,157.86,0.04680256]
[1762612967235,3.21,157.88,157.86,0.04680256]
[1762612974561,8.9132,157.88,157.86,0.04680256]
[1762612974760,3.21,157.87,157.86,0.04680256]
[1762612980175,3.21,157.87,157.8,8.7557]
[1762612980176,3.21,157.87,157.8,3.05]
[1762612980466,8.9139,157.86,157.8,3.05]
[1762612980656,3.21,157.86,157.8,3.05]
[1762612980969,3.21,157.89,157.8,3.05]
[1762612981263,0.0399113,157.86,157.83,3.04132087]
[1762612981562,0.0399113,157.86,157.84,8.7043]
[1762612981766,0.0399113,157.86,157.85,3.0]
[1762612985169,3.1299113,157.86,157.83,0.04132087]
[1762612986966,5.7042,157.85,157.83,0.04132087]
[1762612987558,3.09,157.84,157.83,0.04132087]
[1762612988962,3.1299113,157.86,157.83,0.04132087]
[1762612989163,0.0399113,157.86,157.83,3.04132087]
[1762612989466,0.0399113,157.86,157.83,8.74612087]
[1762612989667,0.0399113,157.86,157.84,3.0]
[1762612989872,3.09,157.92,157.84,3.0]
[1762612990169,3.09,157.91,157.84,3.0]
[1762612990962,3.09,157.91,157.81,3.69466364]
[1762612990963,3.13538334,157.89,157.86,0.04828339]
[1762612991167,3.13418223,157.89,157.86,0.04653603]
[1762612993563,8.83698223,157.89,157.86,0.04653603]
[1762612993764,3.09,157.88,157.86,0.04653603]
[1762612996271,0.04418223,157.89,157.86,3.04653603]
[1762612997058,3.13418223,157.89,157.86,3.04653603]
[1762612998874,3.13418223,157.89,157.86,0.04653603]
[1762613001669,3.09,157.87,157.86,0.04653603]
[1762613007872,3.09,157.85,157.8,7.87646401]
[1762613008085,3.09,157.85,157.81,3.0]
[1762613008777,3.13297583,157.85,157.81,3.04516257]
[1762613009871,3.09,157.84,157.81,0.04516257]
[1762613010583,8.7946,157.84,157.81,0.04516257]
[1762613011482,2.95,157.83,157.81,0.04516257]
[1762613011874,2.95,157.82,157.81,0.04516257]
[1762613020681,2.95,157.84,157.81,3.03516257]
[1762613020876,2.95,157.84,157.81,0.04516257]
[1762613021989,2.95,157.83,157.81,0.04516257]
[1762613024680,3.10297583,157.85,157.81,3.05516257]
[1762613026195,3.06,157.84,157.81,3.05516257]
[1762613027790,3.06,157.84,157.81,0.04516257]
[1762613029093,3.06,157.83,157.81,0.04516257]
[1762613029788,8.765,157.83,157.81,0.04516257]
[1762613029997,3.06,157.82,157.81,0.04516257]
[1762613032594,3.06,157.84,157.81,0.04516257]
[1762613035996,3.06,157.82,157.81,0.04516257]
[1762613036392,3.06,157.84,157.81,0.04516257]
[1762613037688,3.06,157.84,157.81,3.05516257]
[1762613040196,3.06,157.84,157.81,0.04516257]
[1762613040386,3.06,157.83,157.81,0.04516257]
[1762613043596,8.765,157.83,157.81,0.04516257]
[1762613043795,3.13,157.82,157.81,0.04516257]
[1762613048399,5.74747583,157.85,157.81,0.04516257]
[1762613048596,3.13,157.84,157.81,3.00516257]
[1762613049304,3.13,157.84,157.81,0.04516257]
[1762613049691,5.705,157.83,157.81,0.04516257]
[1762613049892,3.13,157.82,157.81,0.04516257]
[1762613053514,3.13,157.8,157.75,7.90463831]
[1762613053811,3.13,157.8,157.74,2.36608845]
[1762613053812,3.13,157.8,157.74,13.23072676]
[1762613054402,3.13,157.79,157.75,8.71613104]
[1762613054602,3.17627849,157.79,157.75,8.71613104]
[1762613055497,5.7072,157.77,157.75,0.04843104]
[1762613055709,3.13,157.76,157.75,0.04843104]
[1762613057609,3.13,157.73,157.69,10.86463831]
[1762613057804,3.13,157.73,157.69,7.90463831]
[1762613058002,3.13,157.73,157.66,10.86463831]
[1762613058304,3.13,157.7,157.64,2.36608845]
[1762613058508,5.7093,157.71,157.64,2.36608845]
[1762613058509,3.13,157.68,157.65,0.04384086]
[1762613059407,3.13,157.68,157.59,2.96]
[1762613059408,3.13,157.66,157.59,2.96]
[1762613059601,3.13,157.66,157.6,2.96]
[1762613060001,3.13,157.64,157.6,2.96]
[1762613060307,3.13,157.64,157.59,5.32608845]
[1762613060508,3.17220259,157.63,157.6,0.04131777]
[1762613063210,0.04220259,157.63,157.6,5.36740622]
[1762613064517,0.04220259,157.63,157.61,2.96]
[1762613064714,0.04220259,157.63,157.62,5.32608845]
[1762613070207,3.13,157.69,157.65,2.96]
[1762613070403,5.709,157.72,157.66,2.96]
[1762613070616,3.13,157.73,157.69,2.36608845]
[1762613071309,3.17462828,157.73,157.69,2.41310896]
[1762613071619,3.17462828,157.73,157.69,0.04702051]
[1762613075513,2.94,157.72,157.69,0.04702051]
[1762613078413,8.649,157.72,157.69,0.04702051]
[1762613078620,2.94,157.71,157.69,0.04702051]
[1762613080222,2.94,157.7,157.69,0.04702051]
[1762613085523,2.93,157.68,157.62,3.19]
[1762613086022,2.93,157.67,157.64,3.19]
[1762613086522,2.97585105,157.67,157.64,3.23758809]
[1762613086816,2.97585105,157.67,157.64,0.04758809]
[1762613087019,2.93,157.64,157.58,3.19]
[1762613087719,2.93,157.64,157.59,3.19]
[1762613088022,0.04668531,157.63,157.6,3.23482244]
[1762613088215,2.97668531,157.63,157.6,3.23482244]
[1762613089018,2.97668531,157.63,157.6,0.04482244]
[1762613090222,2.93,157.62,157.6,0.04482244]
[1762613090619,0.04668531,157.63,157.6,3.23482244]
[1762613091416,2.97668531,157.63,157.6,3.23482244]
[1762613093020,2.97668531,157.63,157.6,0.04482244]
[1762613095026,2.93,157.61,157.6,0.04482244]
[1762613095821,2.93,157.62,157.6,0.04482244]
[1762613096716,2.93,157.62,157.6,3.23482244]
[1762613097120,0.04668531,157.63,157.6,3.23482244]
[1762613097525,2.97668531,157.63,157.6,3.23482244]
[1762613099917,2.97668531,157.63,157.6,0.04482244]
[1762613100126,7.7679163,157.62,157.6,0.04482244]
[1762613100328,7.7679163,157.61,157.6,0.04482244]
[1762613100728,0.04668531,157.63,157.6,3.23482244]
[1762613101830,0.04668531,157.63,157.62,3.12]
[1762613102828,2.93,157.67,157.63,3.12]
[1762613103934,3.18,157.66,157.63,3.16498042]
[1762613104832,3.18,157.66,157.63,0.04498042]
[1762613105138,3.18,157.64,157.63,0.04498042]
[1762613105937,3.18,157.63,157.54,3.12]
[1762613106431,3.18,157.63,157.58,3.12]
[1762613106831,3.18,157.63,157.59,8.8335]
[1762613107031,0.04782339,157.6,157.59,8.8335]
[1762613107335,0.04782339,157.6,157.59,3.12]
[1762613107733,3.22782339,157.6,157.58,0.04868683]
[1762613108742,3.18,157.59,157.58,0.04868683]
[1762613112240,3.18,157.58,157.51,3.12]
[1762613112442,3.18,157.58,157.53,8.8356]
[1762613112629,3.18,157.58,157.54,3.12]
[1762613113033,3.22574706,157.58,157.54,3.16717253]
[1762613113243,3.22574706,157.58,157.55,3.12]
[1762613113439,3.22574706,157.58,157.54,0.04717253]
[1762613114441,5.7144,157.57,157.54,0.04717253]
[1762613114638,0.04574706,157.58,157.54,3.16717253]
[1762613115033,0.04574706,157.58,157.55,8.8349]
[1762613115231,3.22574706,157.58,157.55,3.12]
[1762613115443,3.22574706,157.58,157.54,0.04717253]
[1762613116945,8.93974706,157.58,157.54,0.04717253]
[1762613117139,3.18,157.57,157.54,0.04717253]
[1762613118155,3.18,157.56,157.54,0.04717253]
[1762613124935,3.22574706,157.58,157.54,3.16717253]
[1762613125947,3.22574706,157.58,157.55,5.715]
[1762613126148,3.22574706,157.58,157.55,8.835]
[1762613127151,0.04574706,157.58,157.56,3.12]
[1762613127744,3.18,157.57,157.54,0.04717253]
[1762613128450,3.18,157.57,157.54,8.88247253]
[1762613133544,0.04574706,157.58,157.55,3.01]
[1762613134957,0.04574706,157.58,157.56,5.7146]
[1762613135556,0.04574706,157.58,157.56,8.7246]
[1762613136562,3.19,157.63,157.57,3.01]
[1762613136765,3.19,157.66,157.59,3.01]
[1762613136956,4.53130241,157.65,157.59,3.01]
[1762613137256,3.19,157.66,157.59,3.01]